bitfinex/quotes_SOLUSD_20250920
["timestamp","ask_amount","ask_price","bid_price","bid_amount"]
[1758337854861,1.97249414,238.33,238.31,0.1]
[1758337855049,1.97249414,238.33,238.31,32.14]
[1758337855569,1.97249414,238.32,238.31,32.82]
[1758337855748,1.97249414,238.32,238.31,32.14]
[1758337858663,0.7,238.34,238.31,0.1]
[1758337858866,1.97249414,238.32,238.31,0.1]
[1758337860466,2.64249414,238.32,238.31,0.1]
[1758337861664,33.84249414,238.32,238.31,0.1]
[1758337862257,38.03853307,238.32,238.31,0.1]
[1758337864066,33.84249414,238.32,238.31,0.1]
[1758337870274,33.17249414,238.32,238.31,0.1]
[1758337871682,33.84249414,238.32,238.31,0.1]
[1758337871885,33.17249414,238.32,238.31,0.1]
[1758337872261,45.79264853,238.32,238.31,0.1]
[1758337873076,49.98868746,238.32,238.31,0.1]
[1758337873285,50.65868746,238.32,238.31,0.1]
[1758337876270,45.79264853,238.32,238.31,0.1]
[1758337885684,45.79264853,238.32,238.31,0.77]
[1758337887885,46.47264853,238.32,238.31,0.1]
[1758337888078,50.66868746,238.32,238.31,0.1]
[1758337888876,85.54103855,238.32,238.31,0.1]
[1758337889785,84.83320102,238.32,238.31,0.1]
[1758337893177,52.77320102,238.32,238.31,0.1]
[1758337893390,84.83320102,238.32,238.31,0.1]
[1758337895890,52.77320102,238.32,238.31,0.1]
[1758337896086,84.83320102,238.32,238.31,0.1]
[1758337896285,84.15320102,238.32,238.31,0.1]
[1758337898182,84.83320102,238.32,238.31,0.1]
[1758337898687,84.15320102,238.32,238.31,0.1]
[1758337898993,52.09320102,238.32,238.31,0.1]
[1758337899192,84.15320102,238.32,238.31,0.1]
[1758337900494,84.83320102,238.32,238.31,0.1]
[1758337901974,84.15320102,238.32,238.31,0.1]
[1758337910105,84.83320102,238.32,238.31,0.1]
[1758337912185,84.15320102,238.32,238.31,0.1]
[1758337912494,84.83320102,238.32,238.31,0.1]
[1758337921320,84.15320102,238.32,238.31,0.1]
[1758337923214,52.76320102,238.32,238.31,0.1]
[1758337923411,98.70311817,238.32,238.31,0.1]
[1758337923619,102.23530102,238.32,238.31,0.1]
[1758337924422,0.28432314,238.31,238.25,0.66]
[1758337924612,1.26465661,238.26,238.24,0.66]
[1758337924912,1.26465661,238.25,238.24,0.66]
[1758337925105,39.47505635,238.25,238.23,0.66]
[1758337925410,36.1370077,238.24,238.23,0.66]
[1758337925719,37.82026143,238.24,238.21,0.3]
[1758337925899,1.26465661,238.22,238.21,0.3]
[1758337926298,1.26465661,238.22,238.21,0.96]
[1758337930202,1.26465661,238.23,238.21,0.96]
[1758337930405,4.19814261,238.24,238.22,0.66]
[1758337930607,31.2,238.23,238.22,0.66]
[1758337933807,35.39814261,238.24,238.22,4.85780035]
[1758337934000,35.39814261,238.24,238.23,0.66]
[1758337934425,31.2,238.24,238.23,0.66]
[1758337934625,32.46465661,238.24,238.23,0.66]
[1758337935139,36.66266557,238.24,238.22,0.66]
[1758337935314,1.26465661,238.23,238.21,0.3]
[1758337935621,1.26465661,238.23,238.22,0.66]
[1758337936924,36.66266557,238.24,238.22,4.85780035]
[1758337937227,36.66266557,238.24,238.23,0.66]
[1758337940918,4.19800896,238.24,238.23,4.85762414]
[1758337941121,31.2,238.25,238.23,4.85762414]
[1758337941431,31.2,238.25,238.24,0.66]
[1758337942329,31.2,238.25,238.24,4.85744795]
[1758337943736,4.19780035,238.26,238.24,4.85744795]
[1758337944042,31.2,238.27,238.25,0.66]
[1758337944219,31.2,238.26,238.25,0.66]
[1758337945737,31.2,238.26,238.25,4.85727177]
[1758337953749,33.87575598,238.26,238.22,4.90780035]
[1758337954129,2.67575598,238.25,238.22,4.19780035]
[1758337954443,2.67575598,238.24,238.22,4.19780035]
[1758337954746,1.97575598,238.23,238.22,4.19780035]
[1758337956038,1.97575598,238.24,238.22,4.19780035]
[1758337957048,1.97575598,238.24,238.23,0.71]
[1758337957249,1.97575598,238.25,238.23,0.71]
[1758337958456,1.97575598,238.25,238.23,4.90753261]
[1758337960541,33.17575598,238.26,238.24,0.71]
[1758337961051,33.17575598,238.26,238.22,4.19780035]
[1758337961252,33.17575598,238.26,238.23,0.71]
[1758337961635,4.90753261,238.27,238.23,0.71]
[1758337961830,31.2,238.27,238.24,0.71]
[1758337962064,31.2,238.27,238.25,0.71]
[1758337962252,31.2,238.27,238.26,0.71]
[1758337962454,33.17575598,238.27,238.26,0.71]
[1758337962631,33.87575598,238.27,238.22,15.40230123]
[1758337962831,1.97575598,238.26,238.23,0.71]
[1758337963845,1.97575598,238.26,238.24,4.19744795]
[1758337964152,33.87575598,238.27,238.24,4.19744795]
[1758337964446,31.2,238.27,238.25,0.71]
[1758337964649,33.17575598,238.27,238.25,0.71]
[1758337964852,1.97575598,238.27,238.25,0.71]
[1758337965855,1.97575598,238.27,238.25,4.90711572]
[1758337966534,1.97575598,238.27,238.25,4.19711572]
[1758337968255,2.67575598,238.27,238.25,4.19711572]
[1758337968458,1.97575598,238.27,238.25,4.19711572]
[1758337969357,4.79787853,238.27,238.25,4.19711572]
[1758337971063,4.79787853,238.27,238.22,14.69230123]
[1758337971265,4.79787853,238.27,238.24,0.71]
[1758337972965,4.79787853,238.27,238.25,4.19727177]
[1758337975053,1.97575598,238.27,238.25,4.19727177]
[1758337975552,31.2,238.28,238.26,0.71]
[1758337975754,2.82426611,238.27,238.26,0.71]
[1758337976378,2.82426611,238.27,238.24,0.71]
[1758337976562,33.17575598,238.28,238.25,4.90727177]
[1758337976764,2.82446318,238.27,238.25,4.90727177]
[1758337976962,33.17575598,238.28,238.25,4.90727177]
[1758337977176,2.82446318,238.27,238.25,4.90727177]
[1758337977378,33.17575598,238.28,238.25,4.90727177]
[1758337977561,2.82469425,238.27,238.25,4.90727177]
[1758337977764,33.17575598,238.28,238.25,4.90727177]
[1758337977952,2.82469425,238.27,238.25,4.90727177]
[1758337978152,33.17575598,238.28,238.25,4.90727177]
[1758337978373,2.82469425,238.27,238.25,4.90727177]
[1758337978575,33.17575598,238.28,238.25,4.90727177]
[1758337978759,2.82496256,238.27,238.25,4.90727177]
[1758337979047,33.17575598,238.28,238.25,4.90727177]
[1758337979251,2.82496219,238.27,238.25,4.90727177]
[1758337979468,33.17575598,238.28,238.25,4.90727177]
[1758337979668,2.8250662,238.27,238.25,4.90727177]
[1758337979868,33.17575598,238.28,238.25,4.90727177]
[1758337980062,2.8250662,238.27,238.25,4.90727177]
[1758337980360,33.17575598,238.28,238.25,4.90727177]
[1758337980564,2.82527301,238.27,238.25,4.90727177]
[1758337980768,33.17575598,238.28,238.25,4.90727177]
[1758337980965,2.82527301,238.27,238.22,14.69230123]
[1758337981168,13.32174727,238.29,238.26,0.66]
[1758337981169,12.62174727,238.29,238.26,0.66]
[1758337981354,1.97575598,238.32,238.26,0.66]
[1758337981554,2.82543773,238.31,238.27,1.97575598]
[1758337981756,3.52553497,238.37,238.3,1.97575598]
[1758337981994,4.80148012,238.36,238.31,0.66]
[1758337982157,2.82572414,238.35,238.31,0.66]
[1758337982359,13.29696982,238.38,238.32,1.97575598]
[1758337982360,2.82572414,238.36,238.32,1.97575598]
[1758337982560,2.82572414,238.37,238.33,0.66]
[1758337982767,2.82572414,238.36,238.33,0.66]
[1758337982993,2.82572414,238.37,238.33,0.66]
[1758337983284,2.82572414,238.37,238.34,4.19568683]
[1758337983478,2.82572414,238.37,238.35,0.66]
[1758337984282,2.82572414,238.37,238.34,4.19568683]
[1758337984487,2.82572414,238.37,238.36,4.19533478]
[1758337987679,2.82572414,238.37,238.36,4.85533478]
[1758337987882,31.2,238.4,238.36,4.85533478]
[1758337988070,41.68957996,238.4,238.37,0.66]
[1758337988378,41.68957996,238.4,238.36,4.19533478]
[1758337988379,41.68957996,238.4,238.38,0.66]
[1758337988794,31.2,238.4,238.36,4.19533478]
[1758337989097,2.65575598,238.39,238.34,4.19551115]
[1758337989383,1.97575598,238.39,238.36,0.66]
[1758337989571,2.65575598,238.39,238.34,4.85551115]
[1758337989777,0.68,238.38,238.34,4.85551115]
[1758337989968,0.68,238.38,238.35,0.66]
[1758337990168,1.97575598,238.39,238.35,0.66]
[1758337990469,2.65575598,238.39,238.36,4.19533478]
[1758337990669,1.97575598,238.39,238.36,4.85533478]
[1758337991090,1.97575598,238.39,238.37,0.66]
[1758337991592,6.17109076,238.4,238.37,0.66]
[1758337992689,2.65575598,238.4,238.37,0.66]
[1758337992885,33.85575598,238.4,238.37,4.85513888]
[1758337993078,2.65575598,238.4,238.37,4.85513888]
[1758337993385,33.17575598,238.4,238.37,4.19513888]
[1758337993569,33.85575598,238.4,238.37,4.19513888]
[1758337993777,31.2,238.4,238.37,4.19513888]
[1758337994073,31.2,238.4,238.38,0.66]
[1758337994490,33.17575598,238.41,238.38,0.66]
[1758337995185,33.17575598,238.43,238.39,0.66]
[1758337995484,33.85575598,238.43,238.39,0.66]
[1758337995683,33.85575598,238.43,238.4,0.66]
[1758337996595,33.85575598,238.43,238.39,4.19467178]
[1758337996808,33.85575598,238.43,238.39,4.85467178]
[1758337997093,31.2,238.42,238.39,4.85467178]
[1758337998681,31.88,238.46,238.4,0.66]
[1758337998994,31.2,238.43,238.4,0.66]
[1758337999489,33.17575598,238.44,238.41,0.66]
[1758337999791,33.17575598,238.44,238.41,4.85438071]
[1758338000491,31.2,238.44,238.41,4.85438071]
[1758338001289,0.78,238.49,238.43,1.97575598]
[1758338001488,0.78,238.49,238.44,0.66]
[1758338001667,31.88,238.48,238.44,0.66]
[1758338002066,31.88,238.48,238.45,4.19375131]
[1758338002270,0.68,238.48,238.45,4.19375131]
[1758338002470,0.1,238.49,238.46,0.66]
[1758338002674,0.78,238.49,238.45,4.19375131]
[1758338002880,0.68,238.48,238.45,4.19375131]
[1758338003092,0.1,238.49,238.45,4.85375131]
[1758338003393,0.78,238.49,238.45,4.85375131]
[1758338004282,1.97575598,238.46,238.41,0.66]
[1758338004479,2.65575598,238.45,238.41,0.66]
[1758338005470,0.68,238.45,238.41,4.85432437]
[1758338005679,0.71,238.47,238.42,0.68]
[1758338005892,2.68575598,238.47,238.43,0.68]
[1758338006975,2.68575598,238.47,238.43,4.87400409]
[1758338008199,1.97575598,238.47,238.43,4.19400409]
[1758338008382,0.71,238.46,238.43,4.19400409]
[1758338009090,1.97575598,238.47,238.43,0.68]
[1758338009288,2.68575598,238.47,238.43,0.68]
[1758338009792,1.97247339,238.47,238.43,0.68]
[1758338010401,31.2,238.48,238.44,0.68]
[1758338010575,31.2,238.48,238.45,0.68]
[1758338011099,31.91,238.48,238.43,4.87407944]
[1758338011700,31.91,238.48,238.44,0.68]
[1758338011998,33.17247339,238.48,238.44,0.68]
[1758338012379,33.17247339,238.48,238.44,4.87388264]
[1758338013401,31.2,238.47,238.44,4.87388264]
[1758338017392,31.2,238.47,238.42,4.194279]
[1758338017601,31.91,238.47,238.43,0.68]
[1758338018475,31.91,238.47,238.44,4.19392719]
[1758338019008,31.91,238.47,238.44,4.87392719]
[1758338021181,0.1,238.49,238.45,0.68]
[1758338021386,31.2,238.47,238.46,0.68]
[1758338021782,0.81,238.49,238.44,0.68]
[1758338021982,0.81,238.49,238.45,0.68]
[1758338022190,31.2,238.47,238.42,15.94244989]
[1758338022413,31.2,238.47,238.44,4.19392719]
[1758338022586,31.2,238.47,238.44,4.87392719]
[1758338022920,31.91,238.48,238.44,4.87392719]
[1758338025608,31.91,238.47,238.44,4.19392719]
[1758338026888,0.71,238.46,238.44,4.19392719]
[1758338027090,0.71,238.46,238.43,0.68]
[1758338027414,36.75557153,238.49,238.43,0.68]
[1758338027415,0.71,238.48,238.43,4.87402998]
[1758338027715,0.71,238.47,238.43,4.87402998]
[1758338028594,0.71,238.47,238.44,4.87389759]
[1758338028795,0.71,238.47,238.44,4.19389759]
[1758338029005,32.01,238.49,238.45,0.68]
[1758338029199,32.01,238.49,238.44,5.45637098]
[1758338029200,0.81,238.49,238.44,5.45637098]
[1758338029397,0.81,238.49,238.46,0.68]
[1758338029633,0.81,238.49,238.45,0.68]
[1758338030111,0.1,238.49,238.46,4.87343851]
[1758338030299,0.1,238.49,238.47,0.68]
[1758338030721,0.1,238.49,238.46,5.4559119]
[1758338030897,0.1,238.49,238.48,0.68]
[1758338031817,0.1,238.49,238.46,6.1359119]
[1758338032114,0.1,238.49,238.47,0.68]
[1758338032791,0.1,238.49,238.48,4.19322375]
[1758338032996,0.1,238.49,238.48,4.87322375]
[1758338035712,0.1,238.49,238.48,6.13569714]
[1758338039004,0.1,238.49,238.48,83.61561429]
[1758338039299,0.1,238.49,238.48,115.61561429]
[1758338040813,0.2,238.55,238.49,13.87991715]
[1758338041019,0.2,238.55,238.54,1.26247339]
[1758338041210,0.2,238.55,238.54,33.26247339]
[1758338041410,0.2,238.55,238.54,33.98247339]
[1758338042307,0.2,238.55,238.54,1.98247339]
[1758338042511,0.2,238.55,238.54,33.98247339]
[1758338042810,0.2,238.55,238.54,38.17464241]
[1758338046629,0.2,238.55,238.54,37.45464241]
[1758338049833,0.88,238.55,238.54,32.0]
[1758338051522,0.2,238.55,238.54,32.0]
[1758338052809,0.2,238.55,238.52,4.19252054]
[1758338053033,0.68,238.54,238.53,32.0]
[1758338056837,0.2,238.55,238.53,32.0]
[1758338057041,0.88,238.55,238.53,32.0]
[1758338057339,0.68,238.54,238.47,63.6]
[1758338057522,0.68,238.53,238.48,32.0]
[1758338057714,0.68,238.52,238.48,32.72]
[1758338058120,0.68,238.52,238.49,0.72]
[1758338058320,0.68,238.52,238.5,32.0]
[1758338058933,4.87226923,238.54,238.5,32.0]
[1758338059129,0.68,238.53,238.5,32.0]
[1758338061644,4.87237622,238.53,238.5,32.0]
[1758338063848,4.19216902,238.54,238.5,32.0]
[1758338064147,1.94247339,238.53,238.46,0.72]
[1758338064346,1.26247339,238.51,238.48,32.0]
[1758338064550,0.68,238.51,238.48,32.0]
[1758338065045,1.94247339,238.53,238.48,32.72]
[1758338065252,0.68,238.52,238.48,32.72]
[1758338065621,4.87259407,238.52,238.49,0.65]
[1758338065943,4.19259407,238.52,238.49,0.65]
[1758338066143,4.89259407,238.52,238.49,0.65]
[1758338066547,1.26247339,238.51,238.49,0.65]
[1758338066754,1.26247339,238.51,238.48,32.0]
[1758338066946,1.26247339,238.5,238.48,0.65]
[1758338067155,1.26247339,238.5,238.48,32.65]
[1758338068856,1.26247339,238.5,238.44,16.51023901]
[1758338069034,1.26247339,238.49,238.46,0.65]
[1758338069238,4.19272025,238.51,238.46,0.65]
[1758338069431,1.26247339,238.49,238.46,0.65]
[1758338069854,1.97200263,238.49,238.46,0.65]
[1758338070629,1.97200263,238.5,238.46,0.65]
[1758338071030,1.97200263,238.5,238.46,4.84357318]
[1758338071226,1.97200263,238.5,238.47,0.65]
[1758338071455,1.97200263,238.5,238.48,32.65]
[1758338071758,1.97200263,238.52,238.49,0.65]
[1758338071927,1.97200263,238.53,238.49,0.65]
[1758338072133,1.97200263,238.54,238.49,0.65]
[1758338072345,0.2,238.55,238.5,4.19287211]
[1758338072536,0.2,238.55,238.51,32.65]
[1758338073032,0.2,238.55,238.52,0.65]
[1758338073255,0.2,238.55,238.53,0.65]
[1758338074353,0.2,238.55,238.54,32.0]
[1758338075563,0.2,238.55,238.54,32.65]
[1758338076263,0.2,238.55,238.54,32.0]
[1758338081162,2.17200263,238.55,238.54,32.0]
[1758338082351,2.87200263,238.55,238.54,32.0]
[1758338083145,2.17200263,238.55,238.54,32.0]
[1758338085259,2.17200263,238.55,238.54,32.65]
[1758338087058,2.17200263,238.55,238.54,32.0]
[1758338087455,2.87200263,238.55,238.54,32.0]
[1758338087648,5.69555501,238.55,238.54,32.0]
[1758338087849,2.87200263,238.55,238.54,32.0]
[1758338088164,2.17200263,238.55,238.54,32.0]
[1758338088362,6.36399592,238.55,238.54,32.0]
[1758338091078,2.17200263,238.55,238.54,32.0]
[1758338091678,6.36399592,238.55,238.54,32.0]
[1758338091871,7.06399592,238.55,238.52,32.0]
[1758338092055,9.8875483,238.55,238.52,32.0]
[1758338092248,1.97200263,238.53,238.52,32.65]
[1758338093953,4.19217072,238.54,238.52,32.65]
[1758338094149,1.97200263,238.54,238.52,32.65]
[1758338095656,7.21706388,238.55,238.52,32.0]
[1758338095861,1.97200263,238.54,238.53,32.68]
[1758338101177,3.02602994,238.55,238.53,32.68]
[1758338101380,0.2,238.55,238.54,0.7]
[1758338101562,3.02602994,238.55,238.54,0.7]
[1758338102870,3.02602994,238.55,238.53,32.0]
[1758338103182,4.99803257,238.55,238.53,32.7]
[1758338104786,9.19008701,238.55,238.53,32.7]
[1758338104994,2.82595945,238.54,238.49,63.6]
[1758338105199,2.68200263,238.53,238.5,32.0]
[1758338105496,1.97200263,238.53,238.5,32.7]
[1758338106295,6.16443966,238.53,238.5,32.7]
[1758338106897,1.97200263,238.52,238.5,32.7]
[1758338107259,1.97200263,238.52,238.5,32.0]
[1758338107674,1.97200263,238.52,238.5,32.7]
[1758338107961,1.97200263,238.52,238.51,0.7]
[1758338108159,1.97200263,238.53,238.51,0.7]
[1758338108583,1.97200263,238.53,238.52,0.7]
[1758338108879,1.97200263,238.53,238.5,32.0]
[1758338109057,1.97200263,238.53,238.51,0.7]
[1758338110255,4.79770133,238.53,238.51,0.7]
[1758338110588,4.79770133,238.53,238.5,32.0]
[1758338110768,4.79770133,238.53,238.5,32.7]
[1758338110967,4.79770133,238.54,238.51,0.7]
[1758338112201,4.79770133,238.54,238.52,0.7]
[1758338114187,2.8256987,238.53,238.52,0.7]
[1758338115384,2.8256987,238.53,238.5,36.89283532]
[1758338115589,2.8256987,238.53,238.5,36.19283532]
[1758338115792,2.8256987,238.53,238.51,0.7]
[1758338116292,2.8256987,238.53,238.5,36.19283532]
[1758338116490,2.8256987,238.53,238.51,0.7]
[1758338116691,2.8256987,238.53,238.52,0.7]
[1758338116873,2.8256987,238.54,238.52,0.7]
[1758338117072,2.8256987,238.54,238.53,32.7]
[1758338118674,2.8256987,238.54,238.53,32.0]
[1758338124197,2.8256987,238.54,238.53,36.89234477]
[1758338126880,0.2,238.55,238.53,36.89234477]
[1758338128003,0.2,238.55,238.53,36.19234477]
[1758338128188,3.02717982,238.55,238.53,36.19234477]
[1758338128586,2.82717982,238.54,238.52,0.71]
[1758338128791,2.82717982,238.54,238.53,32.0]
[1758338129687,2.82717982,238.54,238.53,32.71]
[1758338130387,0.2,238.55,238.53,32.71]
[1758338130585,3.02717982,238.55,238.54,0.71]
[1758338135712,3.02717982,238.55,238.53,36.19232991]
[1758338136099,3.02717982,238.55,238.53,36.90232991]
[1758338136417,0.2,238.55,238.54,0.71]
[1758338136803,0.2,238.55,238.54,4.90216902]
[1758338137118,0.2,238.55,238.54,18.78208617]
[1758338137321,0.2,238.55,238.54,20.0435033]
[1758338137695,0.2,238.55,238.54,21.72378726]
[1758338138417,1e-08,238.55,238.54,22.14300416]
[1758338143918,1e-08,238.55,238.54,85.74300416]
[1758338144118,1e-08,238.55,238.54,85.32378726]
[1758338149748,0.1,238.59,238.56,28.55127865]
[1758338149907,0.1,238.59,238.58,1.54574027]
[1758338150524,0.1,238.59,238.58,3.22574195]
[1758338151312,0.1,238.59,238.58,7.41720812]
[1758338155727,0.1,238.59,238.58,71.01720811]
[1758338157022,0.1,238.59,238.58,102.99720811]
[1758338157840,0.1,238.59,238.58,115.37410759]
[1758338160630,0.1,238.59,238.58,116.06410759]
[1758338160822,0.1,238.59,238.58,115.37410759]
[1758338162642,0.1,238.59,238.58,116.06410759]
[1758338165049,0.1,238.59,238.58,129.6597016]
[1758338166152,0.1,238.59,238.58,128.9697016]
[1758338170233,0.1,238.59,238.58,129.6597016]
[1758338171548,0.1,238.59,238.58,95.72828447]
[1758338171857,0.1,238.59,238.58,127.28969992]
[1758338181452,0.1,238.59,238.58,126.02828279]
[1758338181635,0.1,238.59,238.58,126.71828279]
[1758338183752,0.1,238.59,238.58,127.97969992]
[1758338188967,0.1,238.59,238.58,127.28969992]
[1758338189862,0.1,238.59,238.58,95.30969992]
[1758338190168,0.1,238.59,238.58,127.26969992]
[1758338192766,0.1,238.59,238.58,95.30969992]
[1758338192950,0.1,238.59,238.58,127.26969992]
[1758338193974,0.1,238.59,238.58,126.00828279]
[1758338195268,0.78,238.59,238.58,75.97689947]
[1758338195453,9.77294475,238.59,238.56,1.68000168]
[1758338195652,0.68,238.58,238.57,31.96]
[1758338195876,5.48168896,238.58,238.57,31.96]
[1758338196256,2.64941134,238.58,238.57,31.96]
[1758338196858,6.84087751,238.58,238.57,31.96]
[1758338200354,0.68,238.58,238.57,31.96]
[1758338200560,0.1,238.59,238.57,31.96]
[1758338200858,2.74941134,238.59,238.57,31.96]
[1758338202673,0.68,238.58,238.57,31.96]
[1758338203467,0.68,238.58,238.54,12.74509766]
[1758338203675,0.68,238.57,238.55,31.98]
[1758338204581,6.94072655,238.59,238.56,31.98]
[1758338204784,0.68,238.58,238.56,31.98]
[1758338204970,2.06941134,238.59,238.56,31.98]
[1758338205172,2.06941134,238.59,238.57,0.68]
[1758338205369,0.1,238.59,238.56,36.17180845]
[1758338205771,0.1,238.59,238.56,36.85180845]
[1758338207376,0.1,238.59,238.56,36.17180845]
[1758338207575,0.1,238.59,238.57,0.68]
[1758338207889,0.1,238.59,238.58,32.66]
[1758338208472,0.1,238.59,238.58,31.98]
[1758338209083,0.1,238.59,238.58,36.85146617]
[1758338209760,0.1,238.59,238.58,52.41647152]
[1758338210163,0.1,238.59,238.58,52.70079466]
[1758338214984,0.1,238.59,238.58,116.30079465]
[1758338217671,0.1,238.59,238.58,114.33138331]
[1758338217885,0.1,238.59,238.58,116.30079465]
[1758338224279,1e-08,238.59,238.58,117.98065523]
[1758338224891,0.2,238.6,238.59,13.87991715]
[1758338224892,1e-08,238.6,238.59,13.87991715]
[1758338225198,1e-08,238.6,238.59,80.47845752]
[1758338225589,1e-08,238.61,238.59,80.47845752]
[1758338225793,1e-08,238.61,238.6,48.51932849]
[1758338225975,1e-08,238.61,238.6,50.19890692]
[1758338226176,1e-08,238.61,238.6,50.6180184]
[1758338226688,1e-08,238.61,238.6,54.39002175]
[1758338226887,1e-08,238.61,238.6,22.43002175]
[1758338227198,1e-08,238.61,238.6,54.39002175]
[1758338227499,1e-08,238.61,238.6,54.80913323]
[1758338229602,0.2,238.64,238.63,13.59559401]
[1758338229809,0.2,238.64,238.63,47.52500535]
[1758338229987,0.2,238.64,238.63,48.51932849]
[1758338230397,0.2,238.64,238.63,50.1988364]
[1758338231502,0.2,238.64,238.63,54.38942433]
[1758338231698,0.1,238.68,238.64,0.28432314]
[1758338232011,0.1,238.68,238.64,111.71932847]
[1758338232504,0.1,238.68,238.67,47.04932849]
[1758338232697,0.1,238.68,238.67,79.00932849]
[1758338232883,0.1,238.68,238.67,79.71932849]
[1758338233385,0.1,238.68,238.67,84.32820266]
[1758338233599,0.1,238.68,238.67,83.9092141]
[1758338235804,0.1,238.68,238.67,147.00921408]
[1758338236006,0.1,238.69,238.68,15.84932849]
[1758338236190,0.1,238.69,238.68,16.55932849]
[1758338237607,0.1,238.69,238.68,20.74903856]
[1758338241728,0.2,238.72,238.71,17.78477753]
[1758338241899,0.2,238.72,238.71,114.31418885]
[1758338244598,0.87,238.72,238.71,82.35418885]
[1758338244789,0.87,238.72,238.71,114.29418885]
[1758338246314,0.87,238.72,238.71,112.60910065]
[1758338251625,0.2,238.72,238.71,112.60910065]
[1758338252006,0.2,238.72,238.71,80.66910065]
[1758338252324,0.2,238.72,238.71,112.60910065]
[1758338253625,0.2,238.72,238.71,80.66910065]
[1758338253923,0.2,238.72,238.71,112.60910065]
[1758338254842,0.89,238.72,238.71,80.66910065]
[1758338255029,0.2,238.72,238.71,112.60910065]
[1758338259207,0.2,238.72,238.71,80.66910065]
[1758338259407,0.2,238.72,238.71,112.60910065]
[1758338261325,0.2,238.72,238.71,113.29910065]
[1758338266406,0.2,238.72,238.71,80.66910065]
[1758338266625,0.89,238.72,238.71,112.60910065]
[1758338268640,0.2,238.72,238.71,112.60910065]
[1758338269421,0.89,238.72,238.71,112.60910065]
[1758338269908,0.2,238.72,238.71,112.60910065]
[1758338272014,0.2,238.72,238.71,113.29910065]
[1758338274432,0.2,238.72,238.71,80.66910065]
[1758338274644,0.2,238.72,238.71,112.60910065]
[1758338279435,0.2,238.72,238.71,80.66910065]
[1758338279641,0.86,238.72,238.71,108.13559399]
[1758338280452,2.11917029,238.72,238.67,13.59559401]
[1758338280652,1.25917029,238.68,238.63,13.59559401]
[1758338280816,1.25917029,238.68,238.65,13.59559401]
[1758338280817,0.69,238.67,238.65,13.59559401]
[1758338281020,0.69,238.67,238.66,45.53559401]
[1758338281430,1.25917029,238.69,238.66,45.53559401]
[1758338281737,0.69,238.68,238.66,49.72561988]
[1758338282847,1.25917029,238.69,238.66,49.72561988]
[1758338283028,1.94917029,238.69,238.66,49.72561988]
[1758338283343,1.25917029,238.69,238.66,45.53559401]
[1758338283528,1.94917029,238.68,238.66,45.53559401]
[1758338283728,0.69,238.67,238.66,45.53559401]
[1758338286156,1.25917029,238.68,238.66,45.53559401]
[1758338286328,1.94917029,238.68,238.66,108.13559399]
[1758338288854,1.25917029,238.68,238.66,108.13559399]
[1758338289241,1.94917029,238.68,238.66,76.19559399]
[1758338289553,1.94917029,238.67,238.64,18.07029813]
[1758338289750,1.94917029,238.67,238.65,31.94]
[1758338290356,1.94917029,238.67,238.64,18.07029813]
[1758338290555,1.94917029,238.67,238.65,31.94]
[1758338292463,3.02544541,238.72,238.59,13.59559401]
[1758338292464,1.94917029,238.66,238.59,13.59559401]
[1758338292758,1.25917029,238.61,238.6,45.53559401]
[1758338293068,0.69,238.61,238.6,45.53559401]
[1758338293354,1.25917029,238.62,238.6,45.53559401]
[1758338293664,0.69,238.62,238.6,45.53559401]
[1758338295171,1.94917029,238.62,238.6,31.94]
[1758338295376,1.25917029,238.61,238.6,31.94]
[1758338295653,1.94917029,238.61,238.57,0.82216157]
[1758338295870,1.25917029,238.6,238.58,45.53559401]